bitfinex/quotes_ETHUSD_20211001
["timestamp","ask_amount","ask_price","bid_price","bid_amount"]
[1633108750960,7.379913,3265.6,3265.4,0.003]
[1633108751159,0.079913,3265.6,3265.4,0.003]
[1633108751359,0.25835981,3265.6,3265.4,0.003]
[1633108751560,0.99619027,3265.5,3265.4,0.003]
[1633108752759,2.29019027,3265.5,3265.4,0.003]
[1633108753558,0.25036881,3265.6,3265.4,0.003]
[1633108753760,0.17844681,3265.6,3265.4,0.003]
[1633108754360,4.03419547,3265.5,3265.4,0.003]
[1633108754559,4.94136858,3265.5,3265.4,0.003]
[1633108755160,0.073485,3265.6,3265.4,0.003]
[1633108755560,4.0623688,3265.8,3265.2,0.86208494]
[1633108755866,4.0623688,3265.8,3265.4,0.009108]
[1633108755867,1.0,3265.8,3265.4,0.009108]
[1633108756162,0.003,3266.5,3265.5,0.02803383]
[1633108756360,0.003,3266.5,3265.5,5.29260281]
[1633108756561,0.003,3266.5,3266.2,0.91387998]
[1633108756763,0.18153618,3266.5,3266.2,0.91387998]
[1633108756963,0.18153618,3266.5,3266.3,0.88859693]
[1633108757362,0.18153618,3266.5,3266.3,1.07259693]
[1633108757762,0.18153618,3266.5,3266.3,5.66327693]
[1633108759962,0.003,3266.5,3266.3,5.66327693]
[1633108760165,0.003,3266.5,3266.4,0.02912241]
[1633108762164,0.003,3266.5,3266.3,5.66327693]
[1633108762364,0.1816166,3266.5,3266.3,5.66327693]
[1633108762769,0.1816166,3266.5,3266.3,4.77468]
[1633108762966,0.1816166,3266.5,3266.3,0.184]
[1633108763168,0.079913,3266.4,3265.9,0.184]
[1633108763368,0.079913,3266.4,3265.9,4.77554]
[1633108763566,0.1816166,3266.5,3265.9,4.77554]
[1633108763766,0.86095979,3266.3,3265.9,4.77554]
[1633108763968,0.1816166,3266.5,3265.4,0.003]
[1633108764169,0.1816166,3266.5,3265.5,0.003]
[1633108764170,3.141973,3266.0,3265.5,0.003]
[1633108764366,3.789773,3266.0,3265.5,0.003]
[1633108764567,0.079913,3265.6,3265.2,2.46]
[1633108764967,0.88347064,3265.3,3265.2,2.46]
[1633108765368,0.88347064,3265.3,3265.2,2.463]
[1633108765568,0.88347064,3265.3,3265.2,2.49241299]
[1633108766166,0.079913,3265.6,3265.2,2.49241299]
[1633108766565,0.079913,3265.6,3265.3,0.003]
[1633108767168,0.96710678,3265.4,3265.3,0.003]
[1633108767766,1.14552711,3265.4,3265.3,0.003]
[1633108768168,0.17842033,3265.4,3265.3,0.003]
[1633108770970,3.79542532,3265.8,3265.4,0.02937666]
[1633108771368,3.79542532,3265.8,3265.5,0.003]
[1633108773371,0.17846507,3265.7,3265.5,0.003]
[1633108773570,0.17846507,3265.7,3265.3,0.003]
[1633108776476,3.79542532,3265.8,3265.3,0.003]
[1633108776675,3.79542532,3265.8,3265.4,0.02935244]
[1633108777077,3.79542532,3265.8,3265.5,0.003]
[1633108778875,0.17846518,3265.7,3265.5,0.003]
[1633108779276,0.17846518,3265.7,3265.3,0.003]
[1633108781879,3.79542532,3265.8,3265.3,0.003]
[1633108782081,3.79542532,3265.8,3265.4,0.02935244]
[1633108782479,3.79542532,3265.8,3265.5,0.003]
[1633108784281,0.17846528,3265.7,3265.5,0.003]
[1633108784682,0.17846528,3265.7,3265.3,0.003]
[1633108784881,0.17846528,3265.7,3265.4,0.89467917]
[1633108785085,0.17846528,3265.7,3265.5,3.02387469]
[1633108785283,0.17846528,3265.7,3265.5,3.02687469]
[1633108785484,0.17846528,3265.7,3265.6,14.134]
[1633108785683,0.17846528,3265.7,3265.6,1.478]
[1633108785884,0.17846528,3265.7,3265.6,8.07245438]
[1633108786088,0.17846528,3265.7,3265.6,4.96571322]
[1633108787284,0.17846528,3265.7,3265.6,9.55776322]
[1633108787485,0.1,3266.0,3265.6,9.55776322]
[1633108787688,0.1,3266.0,3265.6,8.29307933]
[1633108787885,0.1,3266.0,3265.8,1.294]
[1633108788091,0.1,3266.0,3265.9,0.184]
[1633108788287,0.1,3266.0,3265.9,0.95933099]
[1633108788486,0.1,3266.0,3265.9,5.55041099]
[1633108789087,0.1,3266.0,3265.9,6.84441099]
[1633108789888,0.27851894,3266.0,3265.9,6.84441099]
[1633108790692,0.27851894,3266.0,3265.9,9.42026313]
[1633108791590,0.5112663,3266.6,3266.4,1.78166465]
[1633108791789,0.5112663,3266.6,3266.5,4.64637908]
[1633108792188,0.5112663,3266.6,3266.5,1.478]
[1633108792387,0.5112663,3266.6,3266.5,6.06776]
[1633108792655,0.5112663,3266.6,3266.5,6.93937269]
[1633108792990,0.5112663,3266.6,3266.5,8.0331664]
[1633108794792,0.5112663,3266.6,3266.5,5.86755371]
[1633108794993,0.5112663,3266.6,3266.5,0.184]
[1633108795392,0.60064189,3266.6,3266.5,0.184]
[1633108795995,0.60064189,3266.6,3266.5,2.59835799]
[1633108798194,0.60064189,3266.6,3266.5,2.59646799]
[1633108799596,0.60064189,3266.6,3266.5,1.47611]
[1633108800998,0.60064189,3266.6,3266.5,4.56651905]
[1633108801398,0.60064189,3266.6,3266.5,1.469759]
[1633108801664,0.60064189,3266.6,3266.5,2.61386562]
[1633108802197,3.58691976,3266.7,3266.5,2.61386562]
[1633108802399,3.58691976,3266.7,3266.6,4.58958]
[1633108802599,3.58691976,3266.7,3266.6,6.92586622]
[1633108803402,3.58691976,3266.7,3266.6,4.77358]
[1633108803601,3.58691976,3266.7,3266.6,0.184]
[1633108808004,3.58691976,3266.7,3266.6,0.134]
[1633108809207,3.58691976,3266.7,3266.6,1.34680279]
[1633108809410,3.48691976,3266.7,3266.6,1.35573419]
[1633108810009,1.62942043,3266.7,3266.6,19.7427025]
[1633108810211,0.003,3267.0,3266.7,15.80749933]
[1633108810409,0.003,3267.0,3266.8,0.184]
[1633108810673,0.003,3267.0,3266.9,18.545]
[1633108810809,0.003,3267.5,3267.0,13.95]
[1633108811009,0.003,3267.5,3266.9,5.04457594]
[1633108811010,0.003,3267.5,3267.3,0.009108]
[1633108811210,0.003,3267.5,3267.4,4.77199]
[1633108811609,0.003,3267.5,3267.4,5.855528]
[1633108811811,0.003,3267.5,3267.4,6.70465207]
[1633108812210,0.003,3267.5,3267.4,7.99865207]
[1633108812411,0.003,3267.5,3267.4,11.13623059]
[1633108813014,0.003,3267.5,3267.4,7.99865207]
[1633108814617,0.003,3267.5,3267.4,8.00758347]
[1633108815814,0.003,3267.5,3267.4,6.71358347]
[1633108818016,0.003,3267.5,3267.4,6.70411811]
[1633108820620,0.003,3267.5,3267.4,9.97215525]
[1633108820818,0.003,3267.5,3267.4,9.25985518]
[1633108821018,2e-08,3267.5,3267.4,9.25985518]
[1633108821418,2e-08,3267.5,3267.4,8.17631718]
[1633108821619,2e-08,3267.5,3267.4,7.32719311]
[1633108822686,3.05447982,3268.5,3268.1,0.85599907]
[1633108822820,3.05447982,3268.5,3268.1,1.03999907]
[1633108823020,5.93131306,3268.0,3267.7,6.11779]
[1633108823229,0.079913,3267.8,3267.5,0.003]
[1633108823421,13.32548863,3267.6,3267.5,0.003]
[1633108823622,13.32548863,3267.6,3266.9,0.006]
[1633108823623,0.003,3267.5,3266.9,0.006]
[1633108823824,0.079913,3267.1,3266.8,0.006]
[1633108824021,0.74974228,3267.0,3266.8,0.006]
[1633108824222,14.134,3266.9,3266.8,0.006]
[1633108824622,12.85,3266.8,3266.7,1.85749933]
[1633108824822,8.034,3266.8,3266.7,1.85749933]
[1633108825127,0.071922,3267.4,3266.7,1.85749933]
[1633108825322,0.003,3267.5,3266.7,1.86660733]
[1633108825521,0.003,3267.5,3266.8,3.10652672]
[1633108825721,0.003,3267.5,3267.1,4.58947]
[1633108826121,0.003,3267.5,3267.2,1.01187521]
[1633108826520,0.003,3267.5,3267.2,0.96187521]
[1633108827320,0.003,3267.5,3267.3,4.5889]
[1633108827522,0.03672787,3267.4,3267.3,4.5889]
[1633108827724,0.03372787,3267.4,3267.3,4.5889]
[1633108827920,0.03372787,3267.4,3267.3,4.7729]
[1633108828521,0.03372787,3267.4,3267.3,4.7818314]
[1633108831122,0.003,3267.5,3267.3,4.7818314]
[1633108831521,0.003,3267.5,3267.4,0.1753183]
[1633108831723,0.003,3267.5,3267.4,0.3593183]
[1633108832723,0.003,3267.5,3267.4,0.184]
[1633108832927,0.03824606,3267.5,3267.4,0.184]
[1633108833724,0.03824606,3267.5,3267.4,0.1929314]
[1633108833926,3.04796126,3267.8,3267.4,0.1929314]
[1633108834128,7.57770127,3268.0,3267.4,0.1929314]
[1633108834129,3.04796126,3267.9,3267.4,0.1929314]
[1633108834325,3.04796126,3267.9,3267.5,4.58902]
[1633108834524,3.04796126,3267.9,3267.5,0.184]
[1633108835327,2.99796126,3267.9,3267.5,0.184]
[1633108835530,6.05726126,3267.9,3267.5,0.184]
[1633108837128,6.05726126,3267.9,3267.6,0.19286775]
[1633108838388,0.01767738,3267.8,3267.5,0.184]
[1633108839188,0.01767738,3267.8,3267.7,0.0089314]
[1633108839990,0.01767738,3267.8,3267.7,3.463408]
[1633108840191,0.01767738,3267.8,3267.7,4.18887395]
[1633108840391,0.01767738,3267.8,3267.7,1.17236772]
[1633108840796,0.01767738,3267.8,3267.7,4.18877696]
[1633108840992,0.01767738,3267.8,3267.7,1.17236772]
[1633108841590,0.01767738,3267.8,3267.7,0.1929314]
[1633108842592,7.50577927,3268.0,3267.8,0.19284323]
[1633108842793,7.50577927,3268.0,3267.9,0.184]
[1633108843795,7.52349291,3268.0,3267.9,0.184]
[1633108844393,7.52349291,3268.0,3267.9,4.7812714]
[1633108844795,0.003,3268.5,3268.1,8.70443994]
[1633108844996,0.003,3268.5,3268.2,3.7938358]
[1633108845397,0.003,3268.5,3268.3,4.58741]
[1633108845697,0.003,3268.5,3268.4,1.25848271]
[1633108845899,0.003,3268.5,3268.4,0.184]
[1633108849197,0.01918292,3268.5,3268.4,0.184]
[1633108849798,0.01918292,3268.5,3268.4,0.1929314]
[1633108853000,3.02776292,3268.8,3268.4,0.1929314]
[1633108853606,3.02776292,3268.8,3268.5,0.20959538]
[1633108854805,3.02776292,3268.8,3268.4,0.184]
[1633108855001,3.02776292,3268.8,3268.6,0.0089314]
[1633108855601,7.61623292,3268.8,3268.6,0.0089314]
[1633108856406,3.02776292,3268.8,3268.6,0.0089314]
[1633108858407,7.61608292,3268.8,3268.6,0.0089314]
[1633108858811,3.02776292,3268.8,3268.6,0.0089314]
[1633108859008,3.02776292,3268.8,3268.7,0.20957087]
[1633108859810,3.02776292,3268.8,3268.1,11.73033314]
[1633108859811,6.35,3268.6,3268.1,8.70443994]
[1633108860012,4.129913,3268.2,3268.1,8.70443994]
[1633108860211,0.079913,3268.2,3268.1,8.70443994]
[1633108862819,3.0594102,3268.3,3268.1,8.70443994]
[1633108864021,0.077809,3268.2,3268.1,8.70443994]
[1633108865420,0.18340539,3268.2,3268.1,8.70443994]
[1633108866019,7.59705539,3268.2,3268.1,8.70443994]
[1633108866220,10.08140306,3268.2,3268.1,8.70443994]
[1633108866417,17.98140306,3268.2,3268.1,2.58395994]
[1633108866621,3.96175306,3268.2,3268.1,2.58395994]
[1633108867119,9.65357264,3268.2,3268.1,2.58395994]
[1633108868116,9.60357264,3268.2,3268.1,2.58395994]
[1633108868317,8.50107306,3268.2,3268.1,2.58395994]
[1633108870119,8.39547667,3268.2,3268.1,2.58395994]
[1633108870720,8.50107317,3268.2,3268.1,2.58395994]
[1633108871121,7.20707317,3268.2,3268.1,2.58395994]
[1633108871720,8.50107317,3268.2,3268.1,2.58395994]
[1633108872319,12.0503164,3268.2,3268.1,2.58395994]
[1633108872520,12.05031785,3268.2,3268.1,2.58395994]
[1633108872723,15.80984248,3268.0,3267.4,0.003]
[1633108872923,5.54494865,3267.9,3267.4,0.003]
[1633108873122,2.48458999,3267.8,3266.9,0.19]
[1633108873323,8.60519999,3267.8,3267.0,0.003]
[1633108873524,0.82559636,3267.5,3267.0,0.006]
[1633108873722,3.0604,3267.9,3267.1,1.0044383]
[1633108873923,2.48464904,3267.8,3267.1,1.0044383]
[1633108874123,3.06026,3267.5,3267.2,0.003]
[1633108874526,3.060286,3267.4,3267.2,0.003]
[1633108875322,3.060286,3267.4,3267.0,0.006]
[1633108875523,3.060286,3267.4,3267.3,0.1051287]
[1633108875923,3.060286,3267.4,3267.3,0.1081287]
[1633108876324,3.16572892,3267.4,3267.3,0.003]
[1633108876727,3.16572892,3267.4,3267.0,0.006]
[1633108877130,3.16572892,3267.4,3267.3,0.01385283]
[1633108877524,3.16572892,3267.4,3267.3,0.01685283]
[1633108877926,3.90783897,3267.4,3267.3,0.01685283]
[1633108879927,6.39269389,3267.4,3267.3,0.01685283]
[1633108880126,7.68669389,3267.4,3267.3,0.01685283]
[1633108880327,7.68669389,3267.4,3265.9,2.644]
[1633108880328,13.95,3267.3,3265.9,2.60305283]
[1633108880526,0.90059952,3266.6,3266.2,2.46]
[1633108880725,0.003,3266.5,3266.2,2.46]
[1633108881928,0.10827117,3266.5,3266.2,2.46]
[1633108882529,3.16930457,3266.5,3266.2,2.46]
[1633108883389,4.59207,3266.4,3266.2,2.46]
[1633108883987,3.06145,3266.4,3266.2,2.46]
[1633108884190,0.10827117,3266.5,3266.3,1.294]
[1633108884388,0.10827117,3266.5,3266.2,2.46]
[1633108884389,0.10827117,3266.5,3266.2,4.59073]
[1633108885190,0.10827117,3266.5,3266.2,5.53774901]
[1633108885388,0.10827117,3266.5,3266.2,4.59073]
[1633108886592,0.003,3266.5,3266.3,1.39934953]
[1633108886793,0.003,3266.5,3266.3,0.10534953]
[1633108886992,0.003,3266.5,3266.4,4.59055]
[1633108887192,0.003,3266.5,3266.2,1.06234174]
[1633108887396,0.10528937,3266.5,3266.2,1.06234174]
[1633108887994,0.10528937,3266.5,3266.1,0.81564025]
[1633108888392,0.10528937,3266.5,3266.1,5.40656025]
[1633108888595,0.10528937,3266.5,3266.1,0.81564025]
[1633108889595,0.10528937,3266.5,3266.2,1.19111779]
[1633108891396,0.10528937,3266.5,3266.1,0.81564025]
[1633108891998,0.77018423,3267.0,3266.1,0.81564025]
[1633108892196,0.77018423,3267.0,3266.1,0.92101432]
[1633108892398,3.0606314,3266.8,3266.1,0.92101432]
[1633108892802,3.0606314,3266.8,3266.1,0.81564025]
[1633108893601,3.0606314,3266.8,3266.2,4.59083]
[1633108893800,3.06079,3266.6,3266.0,0.187]
[1633108894602,0.92071818,3266.5,3266.0,4.77807]
[1633108895001,0.92071818,3266.5,3266.0,0.187]
[1633108895601,0.92071818,3266.5,3266.0,4.77814]
[1633108896404,0.92071818,3266.5,3266.0,0.187]
[1633108896602,3.0611346,3266.4,3266.0,0.187]
[1633108896807,3.06079,3266.6,3266.0,4.77817]
[1633108897403,3.06079,3266.6,3266.1,0.94633914]
[1633108897605,3.06079,3266.6,3266.1,1.05171321]
[1633108897802,4.04149739,3266.6,3266.1,0.10537407]
[1633108898204,4.04149739,3266.6,3266.1,4.591]
[1633108898405,0.10525338,3266.5,3266.1,4.591]
[1633108900204,0.10525338,3266.5,3266.0,0.187]
[1633108900906,0.10525338,3266.5,3266.0,4.77812]
[1633108902705,3.16613338,3266.5,3266.0,4.77812]
[1633108902907,3.16613338,3266.5,3266.0,0.187]
[1633108903112,3.06088,3266.5,3266.1,0.10538634]
[1633108903708,3.06079,3266.6,3266.0,0.187]
[1633108903907,4.05691522,3266.9,3266.0,0.187]
[1633108903908,0.10524444,3266.4,3266.0,0.187]
[1633108904907,0.10524444,3266.4,3266.2,4.59091]
[1633108905907,0.10524444,3266.4,3266.3,4.59083]
[1633108907110,0.10524444,3266.4,3266.1,6.1208]
[1633108907309,0.10524444,3266.4,3266.0,0.187]
[1633108908116,0.10524444,3266.4,3266.0,6.30801]
[1633108908510,3.06076,3266.8,3266.0,6.30801]
[1633108908711,3.06076,3266.8,3266.1,0.10539862]
[1633108909310,0.10527169,3266.7,3266.0,6.30801]
[1633108909511,3.0606977,3266.6,3266.0,6.30801]
[1633108909910,3.0606977,3266.6,3266.2,4.59067]
[1633108911715,3.0606977,3266.6,3266.0,0.187]
[1633108912316,3.0606977,3266.6,3266.2,4.59095]
[1633108912516,3.0502091,3266.6,3266.2,4.59095]
[1633108914118,3.0502091,3266.6,3266.3,0.10534953]
[1633108914720,3.0502091,3266.6,3266.2,4.59095]
[1633108914918,0.10528084,3266.5,3266.3,4.59088]
[1633108915518,0.10528084,3266.5,3266.3,5.57385538]
[1633108916720,0.10528084,3266.5,3266.0,0.187]
[1633108916920,0.10528084,3266.5,3266.0,4.77831]
[1633108917518,0.10528084,3266.5,3266.0,0.187]
[1633108917921,3.0610421,3266.4,3266.0,4.77832]
[1633108918120,0.10528084,3266.5,3266.0,4.77832]
[1633108919522,3.0606356,3266.5,3266.0,4.77832]
[1633108919723,3.0606356,3266.5,3266.1,0.10537407]
[1633108920324,0.10524475,3266.4,3266.0,0.187]
[1633108920525,0.10524475,3266.4,3266.2,4.59076]
[1633108922326,0.10524475,3266.4,3266.0,0.187]
[1633108922928,0.10524475,3266.4,3266.0,4.77826]
[1633108924128,0.10524475,3266.4,3266.3,4.59088]
[1633108924527,0.10524475,3266.4,3266.3,4.589758]
[1633108925130,0.003,3267.0,3266.4,0.8977829]
[1633108925331,0.003,3267.0,3266.5,4.59077]
[1633108925528,0.003,3267.0,3266.4,0.8977829]
[1633108925729,0.003,3267.0,3266.3,0.1053618]
[1633108925730,0.93472903,3266.6,3266.3,0.1053618]
[1633108925935,0.93472903,3266.6,3266.2,0.88163357]
[1633108926130,0.93472903,3266.6,3266.0,0.187]
[1633108926536,1.00278803,3266.6,3266.0,0.187]
[1633108926732,0.93472903,3266.6,3266.0,0.187]
[1633108927130,0.93472903,3266.6,3266.1,0.95904461]
[1633108927531,3.0604211,3266.9,3266.3,4.59041]
[1633108928594,0.73784199,3266.8,3266.3,4.59041]
[1633108929995,3.79862199,3266.8,3266.3,4.59041]
[1633108930394,3.83500827,3266.8,3266.3,4.59041]
[1633108930998,3.83500827,3266.8,3266.4,0.10531271]
[1633108931298,0.10529924,3266.7,3266.2,6.12054]
[1633108931701,0.10529924,3266.7,3266.4,4.59068]
[1633108932897,0.10529924,3266.7,3266.2,6.12054]
[1633108933102,3.0606263,3266.5,3266.2,6.12054]
[1633108933299,3.0606263,3266.5,3266.1,0.95904461]
[1633108933698,3.0606263,3266.5,3266.0,0.187]
[1633108933899,3.0606263,3266.5,3266.0,4.77825]
[1633108934303,3.06093,3266.4,3266.0,0.187]
[1633108935101,0.10529924,3266.7,3266.0,0.187]
[1633108935499,3.0606943,3266.5,3266.0,0.187]
[1633108936300,3.0606943,3266.5,3266.1,0.10538634]
[1633108936907,0.10524506,3266.4,3266.0,0.187]
[1633108937303,0.10524506,3266.4,3266.2,4.59069]
[1633108939103,0.10524506,3266.4,3266.0,0.003]
[1633108939506,0.10524506,3266.4,3265.9,0.003]
[1633108940505,0.10524506,3266.4,3266.1,4.59113]
[1633108941706,3.06077,3266.6,3266.1,4.59113]
[1633108941908,0.067127,3266.8,3266.1,4.69652862]
[1633108942110,3.06332,3267.0,3266.1,4.69652862]
[1633108942306,0.10525421,3266.5,3266.2,3.24044455]
[1633108942505,0.10525421,3266.5,3266.2,2.76501434]
[1633108942906,0.10525421,3266.5,3266.3,3.87501434]
[1633108943106,0.10525421,3266.5,3266.3,7.17094434]
[1633108944106,0.10525421,3266.5,3266.4,2.37219357]
[1633108944722,0.10525421,3266.5,3266.4,1.07819357]
[1633108946305,0.10525421,3266.5,3266.4,5.66846357]
[1633108947310,3.06029,3266.9,3266.5,0.10532499]
[1633108947706,3.04518134,3266.9,3266.6,4.59026]
[1633108947906,0.10531764,3266.8,3266.6,4.59026]
[1633108951112,0.10531764,3266.8,3266.7,0.99573696]
[1633108951311,0.10531764,3266.8,3266.7,4.59003]
[1633108951512,0.10531764,3266.8,3266.5,6.12022]
[1633108952113,0.10531764,3266.8,3266.2,0.184]
[1633108952312,0.10531764,3266.8,3266.2,4.77497]
[1633108952912,3.11230834,3266.9,3266.3,0.10532499]
[1633108953111,2.48521143,3266.8,3266.3,0.10532499]
[1633108953311,0.10529965,3266.8,3266.2,0.184]
[1633108953511,3.06073,3266.6,3266.4,4.59076]
[1633108954111,3.06073,3266.6,3266.2,1.27892539]
[1633108954511,3.06073,3266.6,3266.2,5.86994539]
[1633108954712,3.06073,3266.6,3266.2,0.184]
[1633108958314,3.06073,3266.6,3266.3,0.10534953]
[1633108958516,3.06073,3266.6,3266.3,0.28934953]
[1633108958715,3.06073,3266.6,3266.3,0.184]
[1633108958915,0.10527262,3266.5,3266.3,0.184]
[1633108959715,0.10527262,3266.5,3266.4,0.88817445]
[1633108960318,0.10527262,3266.5,3266.4,4.59067]
[1633108961315,0.10527262,3266.5,3266.3,6.30454]
[1633108962120,0.10527262,3266.5,3266.3,0.184]
[1633108963115,0.10527262,3266.5,3266.3,4.77489]
[1633108963715,3.06073,3266.6,3266.3,4.77489]
[1633108963915,3.06073,3266.6,3266.4,0.10533726]
[1633108964317,0.10529081,3266.5,3266.3,0.184]
[1633108964918,0.10529081,3266.5,3266.4,4.59069]
[1633108967519,0.10529081,3266.5,3266.4,4.624254]
[1633108967720,0.10529081,3266.5,3266.4,6.259054]
[1633108968318,0.10529081,3266.5,3266.4,7.553054]
[1633108969323,4.00713188,3267.0,3266.4,7.553054]
[1633108969520,4.00713188,3267.0,3266.7,1.14456109]
[1633108969720,4.00713188,3267.0,3266.7,5.73438109]
[1633108969920,0.1053271,3266.9,3266.7,5.73438109]
[1633108970319,0.1053271,3266.9,3266.7,4.58982]
[1633108971424,0.1053271,3266.9,3266.4,0.033564]
[1633108971621,0.1053271,3266.9,3266.3,1.05220679]
[1633108972021,0.1053271,3266.9,3266.6,4.59004]
[1633108972622,0.0553271,3266.9,3266.6,4.59004]
[1633108974424,0.0553271,3266.9,3266.2,0.033564]
[1633108974624,0.0553271,3266.9,3266.6,4.59048]
[1633108974827,4.00713188,3267.0,3266.7,0.13025137]
[1633108975226,4.00713188,3267.0,3266.6,4.59048]
[1633108975426,3.06024,3266.8,3266.6,4.59048]
[1633108976026,3.06024,3266.8,3266.2,0.033564]
[1633108977224,3.06024,3266.8,3266.4,4.59043]
[1633108977425,3.04513229,3266.8,3266.4,4.59043]
[1633108980427,3.04513229,3266.8,3266.5,0.13030044]
[1633108980829,0.08031826,3266.7,3266.3,6.12044]
[1633108981429,0.08031826,3266.7,3266.5,4.58993]
[1633108984699,0.08031826,3266.7,3266.3,6.12044]
[1633108985835,3.04513229,3266.8,3266.3,6.12044]
[1633108986033,3.04513229,3266.8,3266.4,0.13032499]
[1633108986236,3.04513229,3266.8,3266.1,0.184]
[1633108986436,0.08030027,3266.7,3266.1,0.184]
[1633108987033,0.08030027,3266.7,3266.4,6.1204]
[1633108990634,0.08030027,3266.7,3266.5,0.184]
[1633108990834,0.08030027,3266.7,3266.6,5.54455986]
[1633108991034,0.08030027,3266.7,3266.6,5.72855986]
[1633108991235,3.04513229,3266.8,3266.6,1.07855986]
[1633108991440,3.04513229,3266.8,3266.6,1.18384803]
[1633108991834,0.10532751,3266.7,3266.6,1.07855986]
[1633108992235,0.10532751,3266.7,3266.6,7.19833986]
[1633108992838,0.003,3267.5,3267.0,3.04513229]
[1633108993041,0.003,3267.5,3267.4,0.038298]
[1633108993236,0.003,3267.5,3267.4,0.222298]
[1633108993439,0.003,3267.5,3267.4,4.810868]
[1633108993634,0.003,3267.5,3267.4,6.42210165]
[1633108993835,0.003,3267.5,3267.4,5.70408937]
[1633108994435,0.003,3267.5,3267.4,8.81676317]
[1633108994637,0.003,3267.5,3267.4,5.70408937]
[1633108995441,0.003,3267.5,3267.4,5.66579137]
[1633108996237,0.003,3267.5,3267.4,8.7848381]
[1633108996436,0.003,3267.5,3267.4,5.66579137]
[1633108996838,0.003,3267.5,3267.4,5.82354703]
[1633108997239,0.003,3267.5,3267.4,5.66579137]
[1633108997437,0.05579952,3267.5,3267.4,4.77257]
[1633109002242,0.003,3267.5,3267.4,4.77257]
[1633109002442,0.003,3267.5,3267.4,4.93032566]
[1633109002843,0.003,3267.5,3267.4,4.77257]
[1633109003044,0.05579962,3267.5,3267.4,4.77257]
[1633109005846,0.05579962,3267.5,3267.4,11.66047789]
[1633109006045,1.50484816,3268.0,3267.5,13.95]
[1633109006246,1.50484816,3268.0,3267.9,13.13596452]
[1633109006445,1.50484816,3268.0,3267.9,2.99866452]
[1633109006650,1.45484816,3268.0,3267.9,5.49660316]
[1633109006845,1.45484816,3268.0,3267.9,5.7621791]
[1633109007051,1.45484816,3268.0,3267.9,7.0561791]
[1633109007644,1.43974046,3268.0,3267.9,7.0561791]
[1633109007845,1.43974046,3268.0,3267.9,10.22534843]
[1633109008245,1.43974046,3268.0,3267.9,14.62836557]
[1633109008445,1.46623078,3268.0,3267.9,14.62836557]
[1633109010647,1.46623078,3268.0,3267.9,13.03129363]
[1633109010850,1.46623078,3268.0,3267.9,11.37372116]
[1633109011047,1.46623078,3268.0,3267.9,29.31372116]
[1633109011248,1.46623078,3268.0,3267.9,10.07972116]
[1633109011710,0.003,3268.5,3268.1,0.97556811]
[1633109011848,0.003,3268.5,3268.2,3.46756168]
[1633109012049,0.003,3268.5,3268.2,18.124]
[1633109012252,0.003,3268.5,3268.2,21.09650357]
[1633109012649,0.003,3268.5,3268.2,18.124]
[1633109012848,0.003,3268.5,3268.3,4.07462003]
[1633109013047,0.003,3268.5,3268.4,4.61354476]
[1633109013248,0.003,3268.5,3268.4,22.58710876]
[1633109013448,0.003,3268.5,3268.4,0.41471943]
[1633109013649,0.003,3268.5,3268.4,18.35471943]
[1633109013849,0.01918283,3268.5,3268.4,0.217564]
[1633109014048,0.01918283,3268.5,3268.4,1.35966262]
[1633109014250,0.01918283,3268.5,3268.4,1.32609862]
[1633109015048,0.01918283,3268.5,3268.4,1.62019862]
[1633109016849,0.01918283,3268.5,3268.4,4.37236262]
[1633109017051,0.01918283,3268.5,3268.4,4.63793856]
[1633109017249,0.1787537,3268.7,3268.4,24.27810368]
[1633109017850,0.1787537,3268.7,3268.5,4.58588]
[1633109018049,0.1787537,3268.7,3268.6,3.1641259]
[1633109018852,0.1787537,3268.7,3268.6,3.66342373]
[1633109019050,0.1787537,3268.7,3268.6,4.94492373]
[1633109019251,0.1787537,3268.7,3268.6,4.7397259]
[1633109019450,0.1787537,3268.7,3268.6,10.8543659]
[1633109019849,0.1787537,3268.7,3268.6,7.87424]
[1633109024464,0.1787537,3268.7,3268.6,8.07943783]
[1633109031364,2.6927537,3268.7,3268.6,8.07943783]
[1633109031766,2.6927537,3268.7,3268.6,11.07130031]
[1633109031964,2.6927537,3268.7,3268.6,8.07943783]
[1633109033565,2.6927537,3268.7,3268.6,8.02943783]
[1633109037429,2.67764599,3268.7,3268.6,8.02943783]
[1633109039032,2.67764599,3268.7,3268.6,6.74793783]
[1633109039433,2.67764599,3268.7,3268.6,0.49929783]
[1633109039434,3.97164599,3268.7,3268.6,0.49929783]
[1633109040430,4.96754291,3268.7,3268.6,0.49929783]
[1633109041037,2.67764599,3268.7,3268.6,0.49929783]
[1633109041433,2.67764599,3268.7,3268.6,3.80752227]
[1633109041632,0.59201739,3268.7,3268.6,5.28552227]
[1633109041839,0.59201739,3268.7,3268.6,4.25709821]
[1633109042039,0.59201739,3268.7,3268.6,0.68329783]
[1633109042240,0.59201739,3268.7,3268.6,6.43204798]
[1633109042638,0.59201739,3268.7,3268.6,7.72604798]
[1633109042838,0.59201739,3268.7,3268.6,6.43204798]
[1633109045044,0.59201739,3268.7,3268.6,6.22685015]
[1633109046250,0.59201739,3268.7,3268.6,7.52085015]
[1633109046643,0.59201739,3268.7,3268.6,6.22685015]
[1633109047442,0.58152398,3268.7,3268.6,6.22685015]
[1633109049245,0.58152398,3268.7,3268.6,5.96127421]
[1633109050647,0.003,3269.0,3268.7,13.95]
[1633109050850,0.003,3269.0,3268.9,18.592936]
[1633109051048,0.003,3269.0,3268.9,19.10308012]
[1633109051252,0.003,3269.5,3269.3,4.58513]
[1633109051452,0.003,3269.5,3269.4,0.184]
[1633109051646,0.003,3269.5,3269.4,2.1131373]
[1633109054649,0.003,3269.5,3269.4,5.13276366]
[1633109054849,0.003,3269.5,3269.4,2.4072373]
[1633109055650,0.003,3269.5,3269.4,2.6122391]
[1633109056652,0.003,3269.5,3269.4,5.60769611]
[1633109057051,0.003,3269.5,3269.4,2.6122391]
[1633109057253,0.003,3269.5,3269.4,5.67543863]
[1633109057455,3.06294,3270.6,3269.4,5.67543863]
[1633109057456,0.006,3270.7,3270.6,5.13283189]
[1633109057656,0.006,3270.7,3270.6,7.58371673]